bitfinex-derivatives/quotes_BTCF0:USTF0_20241025
["timestamp","ask_amount","ask_price","bid_price","bid_amount"]
[1729899633052,0.075423,66396.0,66385.0,0.3608]
[1729899633660,0.85036,66403.0,66393.0,0.3608]
[1729899633661,0.0216202,66398.0,66393.0,0.3608]
[1729899633848,0.683915,66403.0,66393.0,0.3608]
[1729899634155,0.436215,66403.0,66393.0,0.3608]
[1729899634646,0.3608,66403.0,66393.0,0.3608]
[1729899635956,0.075415,66402.0,66393.0,0.3608]
[1729899636350,0.3608,66403.0,66393.0,0.3608]
[1729899636551,0.075422,66396.0,66393.0,0.3608]
[1729899638457,0.3608,66403.0,66393.0,0.3608]
[1729899638853,0.455446,66411.0,66399.0,0.66240216]
[1729899638854,0.38084,66411.0,66399.0,0.66240216]
[1729899639058,0.21128,66414.0,66399.0,0.66240216]
[1729899639246,0.21128,66414.0,66400.0,0.2487]
[1729899639653,0.38333801,66416.0,66400.0,0.2487]
[1729899639849,0.02169801,66416.0,66414.0,0.3608]
[1729899640156,0.07765867,66417.0,66414.0,0.3608]
[1729899640661,0.436201,66415.0,66408.0,0.3608]
[1729899640846,0.075404,66412.0,66408.0,0.3608]
[1729899641658,0.075404,66412.0,66400.0,0.61134]
[1729899641659,0.15080108,66412.0,66400.0,0.61134]
[1729899641957,0.07541,66407.0,66400.0,0.6095]
[1729899642963,0.07541,66407.0,66400.0,0.3608]
[1729899643259,0.15080108,66405.0,66400.0,0.3608]
[1729899643449,0.075415,66402.0,66399.0,0.3608]
[1729899644249,0.15080108,66413.0,66399.0,0.3608]
[1729899644664,0.075409,66408.0,66399.0,0.3608]
[1729899644958,0.15080108,66413.0,66399.0,0.3608]
[1729899644959,0.075416,66402.0,66399.0,0.3608]
[1729899645556,0.2341,66408.0,66399.0,0.3608]
[1729899645759,0.075417,66401.0,66399.0,0.3608]
[1729899646060,0.075417,66401.0,66392.0,0.3608]
[1729899646263,0.0978419,66394.0,66388.0,0.3608]
[1729899646469,0.075429,66391.0,66388.0,0.3608]
[1729899646861,0.1956838,66389.0,66388.0,0.3608]
[1729899647554,0.6475638,66389.0,66381.0,0.3608]
[1729899647866,0.075438,66383.0,66378.0,0.36305967]
[1729899648258,0.075438,66383.0,66382.0,0.3608]
[1729899649765,0.075438,66383.0,66378.0,0.00225967]
[1729899651171,0.075439,66382.0,66378.0,0.00225967]
[1729899651365,0.2286,66387.0,66378.0,0.00225967]
[1729899651366,0.07544,66381.0,66378.0,0.00225967]
[1729899651958,0.07544,66381.0,66374.0,0.3608]
[1729899651959,0.5116451,66381.0,66374.0,0.3608]
[1729899652159,0.5116451,66381.0,66362.0,0.3608]
[1729899652160,0.07545,66372.0,66362.0,0.3608]
[1729899652359,0.3608,66381.0,66368.0,0.3608]
[1729899653463,0.01777564,66383.0,66374.0,0.3608]
[1729899653664,0.075437,66384.0,66374.0,0.3608]
[1729899654667,0.075438,66383.0,66374.0,0.3608]
[1729899655968,0.1508451,66383.0,66376.0,0.3608]
[1729899656167,0.075443,66378.0,66370.0,0.3608]
[1729899657658,0.3785075,66388.0,66370.0,0.3608]
[1729899657659,0.075438,66383.0,66376.0,0.3608]
[1729899657859,0.075438,66383.0,66377.0,0.2262]
[1729899658666,0.075438,66383.0,66377.0,0.587]
[1729899659259,0.3785075,66388.0,66377.0,0.587]
[1729899659465,0.075442,66379.0,66371.0,0.36256]
[1729899659664,0.3608,66380.0,66371.0,0.3608]
[1729899660065,0.075439,66382.0,66378.0,0.3608]
[1729899660468,0.3785075,66388.0,66378.0,0.3608]
[1729899660772,0.075435,66385.0,66378.0,0.3608]
[1729899661474,0.0177075,66388.0,66384.0,0.3608]
[1729899661771,0.3608,66396.0,66384.0,0.3608]
[1729899661980,0.075424,66395.0,66384.0,0.3608]
[1729899662271,0.075424,66395.0,66385.0,0.3608]
[1729899662979,0.075435,66385.0,66378.0,0.3608]
[1729899663175,0.075437,66383.0,66378.0,0.3608]
[1729899663388,0.1508451,66386.0,66378.0,0.3608]
[1729899663680,0.1508451,66387.0,66378.0,0.3608]
[1729899663681,0.2262861,66380.0,66378.0,0.3608]
[1729899663880,0.2262861,66380.0,66370.0,0.3608]
[1729899663881,0.07545,66372.0,66370.0,0.3608]
[1729899664174,0.3608,66371.0,66361.0,0.3608]
[1729899664379,0.075458,66365.0,66361.0,0.3608]
[1729899664973,0.075459,66364.0,66361.0,0.3608]
[1729899665371,0.075459,66364.0,66359.0,0.3608]
[1729899665574,0.075461,66362.0,66359.0,0.3608]
[1729899668877,0.3608,66385.0,66360.0,0.81288]
[1729899669070,0.07544,66381.0,66367.0,0.3608]
[1729899669273,0.3608,66385.0,66374.0,0.3608]
[1729899669274,0.0200292,66376.0,66374.0,0.3608]
[1729899671671,0.0954752,66376.0,66374.0,0.3608]
[1729899672672,0.0954752,66376.0,66357.0,0.222]
[1729899672673,0.0954752,66376.0,66361.0,0.3608]
[1729899672892,0.075447,66375.0,66369.0,0.3608]
[1729899673182,0.3608,66371.0,66361.0,0.3608]
[1729899673770,0.436251,66371.0,66361.0,0.3608]
[1729899674279,0.075453,66369.0,66357.0,0.222]
[1729899674580,0.075453,66369.0,66359.0,0.3608]
[1729899675080,0.3608,66371.0,66359.0,0.3608]
[1729899678579,0.09785109,66365.0,66358.0,0.3608]
[1729899678771,0.45949109,66371.0,66358.0,0.3608]
[1729899678973,0.09785109,66365.0,66359.0,0.3608]
[1729899681176,0.09785109,66362.0,66359.0,0.3608]
[1729899681874,0.3608,66371.0,66359.0,0.3608]
[1729899682085,0.3608,66371.0,66366.0,0.3608]
[1729899682983,0.0200292,66376.0,66366.0,0.7216]
[1729899683190,0.0200292,66376.0,66375.0,0.3608]
[1729899683775,0.30817109,66396.0,66375.0,0.81276]
[1729899684087,0.30817109,66396.0,66386.0,0.3608]
[1729899684474,0.21032,66396.0,66386.0,0.3608]
[1729899684685,0.09785109,66395.0,66386.0,0.3608]
[1729899685676,0.01797487,66396.0,66386.0,0.3608]
[1729899685877,0.09785109,66401.0,66386.0,0.3608]
[1729899686789,0.09785109,66395.0,66386.0,0.3608]
[1729899686984,0.09785109,66388.0,66386.0,0.3608]
[1729899687177,0.075427,66393.0,66375.0,0.3608]
[1729899687383,0.09785109,66386.0,66375.0,0.3608]
[1729899687791,0.09785109,66386.0,66381.0,0.3608]
[1729899688290,0.00226017,66400.0,66384.0,0.075435]
[1729899688491,0.00226017,66400.0,66395.0,0.3608]
[1729899688783,0.00226017,66400.0,66396.0,0.19570218]
[1729899688991,0.00226017,66400.0,66396.0,0.86714218]
[1729899689190,0.3608,66410.0,66399.0,0.075419]
[1729899689381,0.3608,66410.0,66404.0,0.3608]
[1729899689878,0.37904988,66410.0,66404.0,0.3608]
[1729899691083,0.00225929,66424.0,66409.0,0.075407]
[1729899691386,0.00225929,66424.0,66415.0,0.3608]
[1729899691580,0.00225929,66424.0,66416.0,0.217]
[1729899691781,0.01807674,66420.0,66416.0,0.217]
[1729899692090,0.00225929,66424.0,66416.0,0.217]
[1729899692293,0.00225929,66424.0,66421.0,0.3608]
[1729899692589,0.02034869,66424.0,66421.0,0.3608]
[1729899692786,0.00225929,66424.0,66421.0,0.3608]
[1729899694385,0.02064895,66424.0,66421.0,0.3608]
[1729899695392,0.3608,66450.0,66431.0,0.075383]
[1729899695586,0.3608,66450.0,66438.0,0.19570218]
[1729899696094,0.3608,66450.0,66433.0,0.19570218]
[1729899696886,0.3608,66450.0,66433.0,0.27108218]
[1729899697088,0.37875153,66446.0,66433.0,0.27108218]
[1729899699985,0.09785109,66443.0,66431.0,0.3608]
[1729899700194,0.3608,66440.0,66424.0,0.075397]
[1729899700401,0.09785109,66439.0,66427.0,0.3608]
[1729899700889,0.09785109,66428.0,66427.0,0.3608]
[1729899701290,0.09785109,66434.0,66427.0,0.3608]
[1729899701495,0.42174,66439.0,66427.0,0.3608]
[1729899701692,0.4209,66439.0,66427.0,0.3608]
[1729899702893,0.4209,66439.0,66426.0,0.075395]
[1729899703095,0.2119,66439.0,66427.0,0.3608]
[1729899703388,0.2119,66439.0,66428.0,0.075393]
[1729899703588,0.2119,66439.0,66433.0,0.3608]
[1729899703589,0.2303306,66439.0,66433.0,0.3608]
[1729899704189,0.0184306,66439.0,66433.0,0.3608]
[1729899704388,0.3608,66440.0,66437.0,0.075382]
[1729899705195,0.00225849,66446.0,66437.0,0.075382]
[1729899705589,0.00225849,66446.0,66445.0,0.3608]
[1729899706495,0.00225849,66446.0,66439.0,0.43618]
[1729899707292,0.00225849,66446.0,66439.0,0.3608]
[1729899709307,0.00225849,66446.0,66440.0,0.3608]
[1729899712004,0.00225849,66446.0,66441.0,0.19570218]
[1729899712303,0.00225849,66446.0,66440.0,0.3608]
[1729899714601,0.00225849,66446.0,66438.0,0.075381]
[1729899715107,0.02028752,66446.0,66438.0,0.075381]
[1729899716301,0.02028752,66446.0,66445.0,0.19570218]
[1729899717596,0.3608,66455.0,66445.0,0.19570218]
[1729899717908,0.01772094,66455.0,66452.0,0.19570218]
[1729899718104,0.3608,66461.0,66455.0,0.075362]
[1729899718302,0.3608,66461.0,66456.0,0.04463462]
[1729899718912,0.3608,66461.0,66458.0,0.075358]
[1729899719208,0.3608,66461.0,66456.0,0.05953101]
[1729899719599,0.3608,66461.0,66460.0,0.04501196]
[1729899719909,0.3608,66461.0,66459.0,0.04501196]
[1729899720211,0.3608,66461.0,66456.0,0.05953101]
[1729899720412,0.09785109,66458.0,66456.0,0.04504161]
[1729899720601,0.2358,66457.0,66449.0,0.42033101]
[1729899720797,0.09785109,66455.0,66449.0,0.42033101]
[1729899720997,0.09785109,66455.0,66449.0,0.3608]
[1729899721302,0.09785109,66455.0,66448.0,0.06010467]
[1729899721303,0.09785109,66450.0,66448.0,0.06010467]
[1729899721601,0.09785109,66450.0,66445.0,0.06010467]
[1729899721602,0.3608,66449.0,66445.0,0.06010467]
[1729899721911,0.3608,66449.0,66440.0,0.07441397]
[1729899721912,0.17322509,66445.0,66440.0,0.06010467]
[1729899722309,0.17322509,66445.0,66439.0,0.06010467]
[1729899723005,0.3608,66442.0,66439.0,0.06010467]
[1729899723205,0.45865109,66442.0,66438.0,0.06010467]
[1729899723408,0.07538,66440.0,66431.0,0.06010467]
[1729899723607,0.09785109,66432.0,66429.0,0.06010467]
[1729899724002,0.3608,66436.0,66428.0,0.06010467]
[1729899724212,0.3608,66436.0,66429.0,0.06010467]
[1729899724513,0.3608,66436.0,66430.0,0.25580685]
[1729899724711,0.3608,66436.0,66432.0,0.06010467]
[1729899726309,0.3608,66436.0,66433.0,0.13549167]
[1729899726518,0.3608,66450.0,66435.0,0.55650218]
[1729899726706,0.09785109,66458.0,66441.0,0.3608]
[1729899726707,0.20896,66453.0,66441.0,0.3608]
[1729899726909,0.3608,66454.0,66447.0,0.075371]
[1729899727310,0.3608,66454.0,66451.0,0.19570218]
[1729899727604,0.01845651,66458.0,66452.0,0.075365]
[1729899727805,0.216,66466.0,66457.0,0.27106218]
[1729899728006,0.216,66466.0,66457.0,0.07536]
[1729899729314,0.3608,66460.0,66453.0,0.06016221]
[1729899729614,0.3608,66460.0,66449.0,0.3608]
[1729899729615,0.09785109,66459.0,66449.0,0.06016221]
[1729899729813,0.09785109,66459.0,66446.0,0.06016221]
[1729899730509,0.36156,66460.0,66446.0,0.25586439]
[1729899730817,0.59528133,66466.0,66452.0,0.27106718]
[1729899731013,0.3608,66460.0,66453.0,0.075364]
[1729899731215,0.3608,66460.0,66450.0,0.42096221]
[1729899731216,0.59528133,66466.0,66458.0,0.075359]
[1729899731427,0.59528133,66466.0,66457.0,0.19570218]
[1729899731428,0.37928133,66466.0,66465.0,0.09785109]
[1729899731920,0.37928133,66466.0,66465.0,0.1580133]
[1729899732109,0.01848133,66466.0,66465.0,0.06016221]
[1729899732311,0.00225779,66467.0,66464.0,0.13551321]
[1729899732711,0.00225779,66467.0,66464.0,0.075351]
[1729899732917,0.45865109,66474.0,66463.0,0.06016221]
[1729899733117,0.3608,66465.0,66461.0,0.06016221]
[1729899733321,0.3608,66465.0,66456.0,0.42096221]
[1729899733718,0.3608,66465.0,66456.0,0.3608]
[1729899735231,0.3608,66465.0,66463.0,0.09785109]
[1729899735431,0.37861995,66474.0,66465.0,0.075351]
[1729899736022,0.37861995,66474.0,66466.0,0.075349]
[1729899736924,0.37861995,66474.0,66463.0,0.36264]
[1729899737108,0.37861995,66474.0,66463.0,0.3608]
[1729899738025,0.37861995,66474.0,66463.0,0.436153]
[1729899739119,0.37861995,66474.0,66463.0,0.3608]
[1729899739323,0.37861995,66474.0,66467.0,0.075348]
[1729899739619,0.37861995,66474.0,66463.0,0.3608]
[1729899741009,0.37861995,66474.0,66463.0,0.436153]
[1729899741212,0.37861995,66474.0,66468.0,0.075348]
[1729899743432,0.37861995,66474.0,66473.0,0.09785109]
[1729899743719,0.01781995,66474.0,66473.0,0.09785109]
[1729899743925,0.00225728,66479.0,66474.0,0.075341]
[1729899745117,0.42595006,66482.0,66471.0,0.3608]
[1729899745118,0.34699504,66482.0,66471.0,0.3608]
[1729899745329,0.34623504,66482.0,66471.0,0.3608]
[1729899745823,0.34623504,66482.0,66468.0,0.075347]
[1729899745824,0.3608,66476.0,66468.0,0.075347]
[1729899746020,0.06515006,66478.0,66468.0,0.075347]
[1729899746417,0.37418912,66482.0,66468.0,0.075347]
[1729899746726,0.3608,66474.0,66468.0,0.075347]
[1729899747325,0.3608,66474.0,66467.0,0.13030012]
[1729899747727,0.3608,66474.0,66463.0,0.3608]
[1729899747928,0.42595006,66474.0,66463.0,0.3608]
[1729899748327,0.3608,66467.0,66459.0,0.00225666]
[1729899748834,0.3608,66467.0,66463.0,0.13030012]
[1729899749720,0.37847452,66474.0,66463.0,0.13030012]
[1729899749919,0.37847452,66474.0,66468.0,0.13030012]
[1729899750321,0.01767452,66474.0,66464.0,0.13030012]
[1729899750522,0.3608,66474.0,66464.0,0.13030012]
[1729899751623,0.3608,66474.0,66460.0,0.075357]
[1729899751624,0.06515006,66473.0,66460.0,0.075357]
[1729899751928,0.06515006,66473.0,66456.0,0.3608]
[1729899751929,0.06515006,66461.0,66456.0,0.3608]
[1729899752124,0.06515006,66456.0,66447.0,0.3608]
[1729899752321,0.5831,66460.0,66447.0,0.3608]
[1729899752322,0.06515006,66450.0,66447.0,0.3608]
[1729899752828,0.06515006,66450.0,66441.0,0.33129726]
[1729899752829,0.075374,66445.0,66441.0,0.33129726]
[1729899753020,0.06515006,66440.0,66428.0,0.36256]
[1729899753327,0.06515006,66430.0,66428.0,0.00176]
[1729899753529,0.06515006,66430.0,66424.0,0.3608]
[1729899753730,0.3608,66437.0,66428.0,0.06515006]
[1729899753931,0.06515006,66434.0,66424.0,0.3608]
[1729899754130,0.06515006,66428.0,66419.0,0.00225826]
[1729899754429,0.3608,66423.0,66419.0,0.00225826]
[1729899755024,0.09780843,66422.0,66409.0,0.3608]
[1729899755230,0.09780843,66422.0,66404.0,0.19561686]
[1729899756324,0.47781602,66423.0,66410.0,0.19561686]
[1729899756325,0.38000759,66423.0,66410.0,0.19561686]
[1729899756527,0.37924759,66423.0,66410.0,0.19561686]
[1729899757335,0.37924759,66423.0,66405.0,0.19561686]
[1729899757519,0.47705602,66423.0,66405.0,0.19561686]
[1729899757831,0.47705602,66423.0,66403.0,0.2194]
[1729899758032,0.47705602,66423.0,66402.0,0.3608]
[1729899758033,0.07541,66414.0,66402.0,0.3608]
[1729899758235,0.3608,66409.0,66402.0,0.3608]
[1729899759526,0.3608,66409.0,66406.0,0.19561686]
[1729899759736,0.3608,66413.0,66406.0,0.19561686]
[1729899759931,0.37856609,66413.0,66406.0,0.19561686]
[1729899760129,0.37856609,66413.0,66403.0,0.2357]
[1729899760732,0.37856609,66413.0,66402.0,0.3608]
[1729899761123,0.09780843,66408.0,66402.0,0.3608]
[1729899761325,0.09780843,66408.0,66398.0,0.3608]
[1729899761326,0.3608,66406.0,66398.0,0.3608]
[1729899762236,0.09780843,66404.0,66398.0,0.3608]
[1729899764127,0.3608,66406.0,66398.0,0.3608]
[1729899765037,0.3608,66399.0,66390.0,0.41341686]
[1729899765639,0.3608,66399.0,66390.0,0.2178]
[1729899769044,0.3608,66397.0,66390.0,0.2178]
[1729899770330,0.3608,66397.0,66396.0,0.19561686]
[1729899770540,0.3608,66405.0,66393.0,0.436233]
[1729899771541,0.09780843,66402.0,66393.0,0.436233]
[1729899771834,0.09780843,66402.0,66393.0,0.075433]
[1729899772231,0.09780843,66402.0,66393.0,0.436233]
[1729899772636,0.09780843,66402.0,66393.0,0.075433]
[1729899775442,0.3608,66397.0,66393.0,0.075433]
[1729899776463,0.3608,66397.0,66390.0,0.2178]
[1729899776464,0.06522659,66396.0,66390.0,0.2178]
[1729899777581,0.00076,66397.0,66395.0,0.07543]
[1729899777769,0.3608,66411.0,66398.0,0.075426]
[1729899777954,0.42602659,66411.0,66401.0,0.13045318]
[1729899778473,0.42602659,66411.0,66400.0,0.3608]
[1729899779059,0.44846524,66411.0,66400.0,0.3608]
[1729899780399,0.44846524,66411.0,66405.0,0.3608]
[1729899780400,0.06522659,66407.0,66405.0,0.3608]
[1729899780560,0.02243865,66411.0,66405.0,0.3608]
[1729899780765,0.06522659,66413.0,66405.0,0.3608]
[1729899781502,0.0229943,66413.0,66405.0,0.3608]
[1729899781676,0.06522659,66413.0,66405.0,0.3608]
[1729899782157,0.06522659,66413.0,66405.0,0.436219]
[1729899782361,0.06522659,66413.0,66405.0,0.49638121]
[1729899782560,0.06522659,66413.0,66406.0,0.06016221]
[1729899782759,0.06522659,66413.0,66405.0,0.49638121]
[1729899783441,0.06522659,66413.0,66407.0,0.06016221]
[1729899783840,0.06522659,66413.0,66405.0,0.42096221]
[1729899784543,0.06522659,66408.0,66407.0,0.06016221]
[1729899784848,0.06522659,66408.0,66394.0,0.08929676]
[1729899784849,0.06522659,66407.0,66394.0,0.07441397]
[1729899785038,0.42602659,66401.0,66392.0,0.07667293]
[1729899785237,0.42602659,66401.0,66392.0,0.00225896]
[1729899785447,0.42602659,66401.0,66392.0,0.07667293]
[1729899785646,0.06522659,66401.0,66395.0,0.07441397]
[1729899785848,0.06522659,66396.0,66394.0,0.07441397]
[1729899786045,0.06522659,66396.0,66392.0,0.00225896]
[1729899786644,0.3608,66399.0,66392.0,0.00225896]
[1729899787251,0.3608,66399.0,66396.0,0.20588218]
[1729899787447,0.3608,66408.0,66397.0,0.3608]
[1729899787753,0.3608,66408.0,66397.0,0.43521397]
[1729899787943,0.3608,66408.0,66397.0,0.07441397]
[1729899788150,0.06522659,66403.0,66397.0,0.07441397]
[1729899788348,0.06522659,66403.0,66396.0,0.14984297]
[1729899788853,0.38365891,66408.0,66397.0,0.3608]
[1729899789042,0.02285891,66408.0,66405.0,0.13045318]
[1729899789246,0.20508,66411.0,66405.0,0.13045318]
[1729899789445,0.34571259,66417.0,66405.0,0.13045318]
[1729899789645,0.38355275,66415.0,66404.0,0.07542]
[1729899790045,0.38355275,66415.0,66404.0,0.14983397]
[1729899791047,0.38355275,66415.0,66404.0,0.07441397]
[1729899791242,0.38355275,66415.0,66409.0,0.20586718]
[1729899791443,0.02275275,66415.0,66409.0,0.20586718]
[1729899791649,0.5767,66422.0,66410.0,0.075413]
[1729899792248,0.06522659,66419.0,66410.0,0.075413]
[1729899792448,0.06522659,66415.0,66409.0,0.3608]
[1729899793349,0.36156,66416.0,66409.0,0.3608]
[1729899793656,0.3608,66416.0,66409.0,0.3608]
[1729899795956,0.3608,66416.0,66403.0,0.436221]
[1729899796148,0.3608,66416.0,66403.0,0.075421]
[1729899796660,0.06522659,66404.0,66400.0,0.43521397]
[1729899796949,0.06522659,66404.0,66394.0,0.07441397]
[1729899797153,0.06522659,66404.0,66393.0,0.07441397]
[1729899797343,0.50144759,66404.0,66392.0,0.43747293]
[1729899797542,0.72814759,66404.0,66392.0,0.43747293]
[1729899798241,0.36734759,66404.0,66392.0,0.43747293]
[1729899798457,0.06522659,66395.0,66392.0,0.43747293]
[1729899798754,0.06522659,66395.0,66392.0,0.36305896]
[1729899799453,0.06522659,66395.0,66392.0,0.00225896]
[1729899800062,0.06522659,66395.0,66385.0,0.43521397]
[1729899800063,0.075436,66391.0,66385.0,0.3608]
[1729899800350,0.06522659,66385.0,66376.0,0.07441397]
[1729899800543,0.06522659,66385.0,66372.0,0.438056]
[1729899800544,0.06522659,66385.0,66373.0,0.07441397]
[1729899800747,0.06522659,66385.0,66372.0,0.51066997]
[1729899800942,0.075444,66384.0,66372.0,0.436256]
[1729899801154,0.06522659,66380.0,66372.0,0.436256]
[1729899802043,0.06522659,66380.0,66372.0,0.3608]
[1729899802449,0.14067459,66380.0,66369.0,0.2389]
[1729899802648,0.3608,66384.0,66369.0,0.2389]
[1729899802649,0.06522659,66376.0,66369.0,0.2389]
[1729899803149,0.06522659,66369.0,66368.0,0.3608]
[1729899803455,0.06522659,66369.0,66365.0,0.00226012]
[1729899803658,0.20512,66368.0,66356.0,0.3608]
[1729899803958,0.06522659,66365.0,66353.0,0.13045318]
[1729899804351,0.06522659,66361.0,66352.0,0.436279]
[1729899805858,0.06522659,66361.0,66353.0,0.13045318]
[1729899806252,0.20512,66368.0,66358.0,0.3608]
[1729899806963,0.06522659,66370.0,66358.0,0.3608]
[1729899807152,0.20516,66369.0,66358.0,0.3608]
[1729899807659,0.0223564,66371.0,66361.0,0.13045318]
[1729899807852,0.06522659,66374.0,66361.0,0.20592118]
[1729899808055,0.20516,66373.0,66364.0,0.3608]
[1729899808862,0.20516,66372.0,66364.0,0.3608]
[1729899809355,0.06522659,66369.0,66364.0,0.3608]
[1729899810261,0.06522659,66365.0,66364.0,0.3608]
[1729899812754,0.06522659,66369.0,66364.0,0.3608]
[1729899815052,0.06522659,66365.0,66364.0,0.3608]
[1729899815654,0.06522659,66365.0,66358.0,0.3608]
[1729899816769,0.075462,66368.0,66351.0,0.2345]
[1729899816770,0.06522659,66360.0,66351.0,0.2345]
[1729899816960,0.06522659,66352.0,66351.0,0.2345]
[1729899817161,0.3608,66359.0,66351.0,0.2345]
[1729899817362,0.06522659,66353.0,66351.0,0.2345]
[1729899817967,0.08831291,66353.0,66351.0,0.2345]
[1729899818664,0.02308632,66353.0,66351.0,0.2345]
[1729899818864,0.436272,66359.0,66351.0,0.2345]
[1729899819064,0.06522659,66358.0,66351.0,0.2345]
[1729899819764,0.00088,66359.0,66352.0,0.13045318]
[1729899820074,0.06522659,66358.0,66351.0,0.2345]
[1729899821372,0.02205142,66359.0,66356.0,0.56672818]
[1729899821566,0.20376,66368.0,66357.0,0.2282]
[1729899821871,0.075461,66369.0,66357.0,0.2282]
[1729899821872,0.06522659,66365.0,66357.0,0.2282]
[1729899822572,0.0223129,66368.0,66357.0,0.2282]
[1729899822573,0.0223129,66368.0,66363.0,0.3608]
[1729899822867,0.075453,66376.0,66363.0,0.3608]
[1729899822868,0.06748758,66373.0,66363.0,0.436266]
[1729899823263,0.06522659,66369.0,66363.0,0.3608]
[1729899823473,0.06522659,66365.0,66357.0,0.305553]
[1729899823668,0.06522659,66365.0,66357.0,0.303673]
[1729899824064,0.075461,66369.0,66357.0,0.303673]
[1729899824267,0.06522659,66368.0,66357.0,0.303673]
[1729899824873,0.06522659,66368.0,66358.0,0.075472]
[1729899825171,0.06522659,66368.0,66362.0,0.3608]
[1729899826170,0.02481345,66373.0,66362.0,0.436268]
[1729899826670,0.06522659,66370.0,66362.0,0.436268]
[1729899827264,0.06522659,66370.0,66351.0,0.4505]
[1729899827265,0.075479,66353.0,66337.0,0.00226099]
[1729899827571,0.3608,66348.0,66337.0,0.3608]
[1729899827866,0.3608,66340.0,66336.0,0.10146099]
[1729899828066,0.3608,66348.0,66336.0,0.10146099]
[1729899828269,0.3608,66355.0,66350.0,0.075481]
[1729899828464,0.3608,66355.0,66347.0,0.13045318]
[1729899828658,0.3608,66355.0,66348.0,0.4524]
[1729899828976,0.2216,66363.0,66354.0,0.075477]
[1729899829665,0.06522659,66354.0,66348.0,0.00124]
[1729899829871,0.06522659,66348.0,66339.0,0.00116]
[1729899830166,0.075486,66347.0,66335.0,0.14991197]
[1729899830365,0.075486,66347.0,66335.0,0.17200925]
[1729899830567,0.075486,66347.0,66336.0,0.18709125]
[1729899830866,0.075487,66346.0,66336.0,0.07441397]
[1729899831972,0.3608,66349.0,66334.0,0.30721397]
[1729899831973,0.06522659,66339.0,66334.0,0.30721397]
[1729899832271,0.06522659,66343.0,66334.0,0.2328]
[1729899832773,0.075496,66338.0,66335.0,0.13045318]
[1729899832979,0.075488,66345.0,66340.0,0.06522659]
[1729899833275,0.075491,66343.0,66340.0,0.06522659]
[1729899834159,0.075491,66343.0,66337.0,0.06522659]
[1729899834668,0.06522659,66346.0,66335.0,0.06522659]
[1729899834866,0.2297,66347.0,66336.0,0.06522659]
[1729899835166,0.38386822,66349.0,66336.0,0.06522659]
[1729899835369,0.075485,66348.0,66336.0,0.06522659]
[1729899835868,0.38386822,66349.0,66336.0,0.06522659]
[1729899836065,0.075486,66347.0,66336.0,0.06522659]
[1729899836263,0.075486,66347.0,66335.0,0.06522659]
[1729899837167,0.02222822,66349.0,66344.0,0.06522659]
[1729899837377,0.075439,66388.0,66348.0,0.13045318]
[1729899837378,0.3608,66357.0,66348.0,0.13045318]
[1729899837571,0.436264,66366.0,66355.0,0.13045318]
[1729899837769,0.436264,66366.0,66356.0,1.5]
[1729899838169,0.3608,66366.0,66359.0,0.13045318]
[1729899838368,0.0225907,66366.0,66365.0,0.3608]
[1729899838577,0.3608,66370.0,66365.0,0.3608]
[1729899840579,0.06522659,66368.0,66365.0,0.4059175]
[1729899840772,0.075464,66366.0,66363.0,0.0451175]
[1729899840982,0.13045318,66363.0,66362.0,0.0451175]
[1729899841182,0.13045318,66363.0,66359.0,0.0451175]
[1729899841369,0.13045318,66363.0,66358.0,0.0451175]
[1729899841680,0.3608,66367.0,66361.0,0.075469]
[1729899841984,0.02208889,66370.0,66362.0,0.0451175]
[1729899842181,0.02208889,66370.0,66361.0,0.075469]
[1729899842182,0.06522659,66374.0,66363.0,0.0451175]
[1729899842676,0.3608,66370.0,66362.0,0.0451175]
[1729899843076,0.3608,66370.0,66361.0,0.1205865]
[1729899843483,0.3608,66370.0,66369.0,0.13045318]
[1729899843676,0.3608,66383.0,66369.0,0.13045318]
[1729899843677,0.3608,66383.0,66372.0,0.075457]
[1729899843873,0.3608,66383.0,66372.0,0.12056672]
[1729899843874,0.06522659,66382.0,66372.0,0.12056672]
[1729899844183,0.3608,66376.0,66373.0,0.04510972]
[1729899844376,0.06522659,66373.0,66371.0,0.04510972]
[1729899844579,0.06522659,66373.0,66368.0,0.04510972]
[1729899845279,0.06522659,66374.0,66365.0,0.3608]
[1729899845280,0.3608,66376.0,66370.0,0.04510972]
[1729899845479,0.3608,66376.0,66374.0,0.20590718]
[1729899845881,0.38363589,66383.0,66375.0,0.85786972]
[1729899846075,0.38283589,66383.0,66382.0,0.13045318]
[1729899846592,0.38283589,66383.0,66378.0,0.1755629]
[1729899846883,0.44806248,66383.0,66376.0,0.04510972]
[1729899847076,0.44806248,66383.0,66375.0,0.40590972]
[1729899847285,0.44806248,66383.0,66375.0,0.3608]
[1729899847881,0.06522659,66379.0,66375.0,0.3608]
[1729899848082,0.06522659,66375.0,66368.0,0.00225989]
[1729899848987,0.06522659,66371.0,66368.0,0.00225989]
[1729899849187,0.36156,66377.0,66369.0,0.13045318]
[1729899849188,0.3608,66377.0,66369.0,0.13045318]
[1729899850684,0.00076,66382.0,66371.0,0.49125318]
[1729899850884,0.38371589,66383.0,66371.0,0.49125318]
[1729899851187,0.38283589,66383.0,66371.0,0.49125318]
[1729899851587,0.44806248,66383.0,66371.0,0.13045318]
[1729899851983,0.38283589,66383.0,66376.0,0.13045318]
[1729899852280,0.38283589,66383.0,66382.0,0.075445]
[1729899854888,0.02203589,66383.0,66382.0,0.075445]
[1729899855097,0.3608,66392.0,66382.0,0.075445]
[1729899855303,0.3608,66392.0,66386.0,0.13045318]
[1729899856291,0.38323979,66392.0,66386.0,0.13045318]
[1729899857198,0.38323979,66392.0,66391.0,0.13045318]
[1729899858897,0.02243979,66392.0,66391.0,0.13045318]
[1729899859197,0.36306014,66398.0,66391.0,0.20588718]
[1729899859903,0.36306014,66398.0,66396.0,0.13045318]
[1729899860400,0.02470219,66398.0,66396.0,0.20588218]
[1729899862302,0.02470219,66398.0,66392.0,0.3608]
[1729899862598,0.08992878,66398.0,66385.0,0.13045318]
[1729899862808,0.06522659,66385.0,66380.0,0.00116]
[1729899862990,0.2257,66384.0,66370.0,0.3608]
[1729899863297,0.301144,66384.0,66373.0,0.13045318]
[1729899865105,0.3608,66381.0,66373.0,0.13045318]
[1729899866693,0.436247,66381.0,66373.0,0.13045318]
[1729899866902,0.436247,66381.0,66371.0,0.075457]